[Event "Fagernes Open 2019"]
[Site "Fagernes"]
[Date "2019.04.21"]
[Round "9.26"]
[White "Von Bahr, Oskar"]
[Black "Kazakovskiy, Valeriy"]
[Result "1/2-1/2"]
[ECO "E06"]
[WhiteElo "2404"]
[BlackElo "2440"]
[Annotator "NA"]
[PlyCount "142"]
[EventDate "2019.04.14"]
[EventType "swiss"]
[EventCountry "NOR"]
[SourceTitle "playchess.com"]
[Source "ChessBase"]
[SourceQuality "1"]
[TimeControl "40/7200:3600"]

1. d4 {[%emt 0:33:29]} Nf6 {[%emt 0:29:17]} 2. c4 {[%emt 0:00:00]} e6 {[%emt 0:00:00]} 3. Nf3 {[%emt 0:00:00]} d5 {[%emt 0:00:00]} 4. g3 {[%emt 0:00:00]} Be7 {[%emt 0:01:00]} 5. Bg2 {[%emt 0:00:00]} O-O {[%emt 0:00:00]} 6. O-O {[%emt 0:00:00]} c6 {[%emt 0:00:00]} 7. Qc2 {[%emt 0:02:52]} b6 {[%emt 0:00:00]} 8. Nbd2 {[%emt 0:00:52]} Bb7 {[%emt 0:00:00]} 9. e4 {[%emt 0:00:28]} Na6 {[%emt 0:00:00]} 10. Rd1 {[%emt 0:21:54]} Rc8 {[%emt 0:00:16]} 11. e5 {[%emt 0:00:55]} Nd7 {[%emt 0:00:17]} 12. cxd5 {[%emt 0:00:06]} cxd5 {[%emt 0:06:04]} 13. Qa4 {[%emt 0:00:38]} Ndb8 {[%emt 0:08:50]} 14. a3 {[%emt 0:05:47]} Qd7 {[%emt 0:03:07]} 15. Qxd7 {[%emt 0:11:23]} Nxd7 {[%emt 0:00:00]} 16. Bf1 {[%emt 0:02:11]} Nc7 {[%emt 0:04:12]} 17. b4 {[%emt 0:01:25]} Ba6 {[%emt 0:02:45]} 18. Bxa6 {[%emt 0:00:24]} Nxa6 {[%emt 0:00:00]} 19. b5 {[%emt 0:00:20]} Nc7 {[%emt 0:01:51]} 20. a4 {[%emt 0:04:20]} a6 {[%emt 0:06:14]} 21. bxa6 {[%emt 0:00:00]} Nxa6 {[%emt 0:00:00]} 22. Ba3 {[%emt 0:00:00]} Bxa3 {[%emt 0:03:32]} 23. Rxa3 {[%emt 0:00:00]} Rc6 {[%emt 0:00:00]} 24. Kf1 {[%emt 0:00:15]} f6 {[%emt 0:04:02]} 25. Ke2 {[%emt 0:06:14]} Ra8 {[%emt 0:03:53]} 26. Rb1 {[%emt 0:08:27]} Nc7 {[%emt 0:04:12]} 27. Rbb3 {[%emt 0:03:56]} Kf7 {[%emt 0:04:20]} 28. h3 {[%emt 0:02:28]} Ke7 {[%emt 0:02:47]} 29. Re3 {[%emt 0:00:50]} Na6 {[%emt 0:05:57]} 30. Reb3 {[%emt 0:00:55]} Nab8 {[%emt 0:00:57]} 31. Kd1 {[%emt 0:03:54]} Rc7 {[%emt 0:02:20]} 32. Nb1 {[%emt 0:01:00]} Rc4 {[%emt 0:02:04]} 33. Rc3 {[%emt 0:02:31]} Rcxa4 {[%emt 0:04:30]} 34. Rxa4 {[%emt 0:02:26]} Rxa4 {[%emt 0:00:00]} 35. Rc8 {[%emt 0:00:00]} fxe5 {[%emt 0:03:25]} 36. dxe5 {[%emt 0:00:00]} Rc4 {[%emt 0:06:01]} 37. Rxc4 {[%emt 0:00:00]} dxc4 {[%emt 0:00:00]} 38. Na3 {[%emt 0:00:00]} c3 {[%emt 0:01:44]} 39. Kc2 {[%emt 0:00:00]} Nc6 {[%emt 0:00:15]} 40. Kxc3 {[%emt 0:00:00]} Ndxe5 {[%emt 0:02:43]} 41. Ng5 {[%emt 0:57:07]} h6 {[%emt 0:33:13]} 42. Ne4 {[%emt 0:00:00]} Nd7 {[%emt 0:06:38]} 43. Kc4 {[%emt 0:00:00]} Na7 {[%emt 0:00:07]} 44. f4 {[%emt 0:00:00]} Nf6 {[%emt 0:03:18]} 45. Nc3 {[%emt 0:00:00]} Nh5 {[%emt 0:00:46]} 46. Ne2 {[%emt 0:00:00]} Nf6 {[%emt 0:01:20]} 47. g4 {[%emt 0:00:00]} Ne4 {[%emt 0:00:00]} 48. Kd4 {[%emt 0:00:00]} Nd6 {[%emt 0:00:00]} 49. Nc2 {[%emt 0:00:00]} Nc6+ {[%emt 0:00:13]} 50. Kd3 {[%emt 0:00:00]} Kf6 {[%emt 0:01:19]} 51. Ng3 {[%emt 0:00:00]} b5 {[%emt 0:00:26]} 52. Ne3 {[%emt 0:00:00]} Kf7 {[%emt 0:01:08]} 53. h4 {[%emt 0:00:00]} b4 {[%emt 0:03:43]} 54. h5 {[%emt 0:00:00]} e5 {[%emt 0:02:29]} 55. Ne2 {[%emt 0:00:00]} exf4 {[%emt 0:00:54]} 56. Nxf4 {[%emt 0:00:00]} Kf6 {[%emt 0:00:09]} 57. Nh3 {[%emt 0:00:00]} Ne5+ {[%emt 0:02:16]} 58. Kc2 {[%emt 0:00:00]} Ndc4 {[%emt 0:01:50]} 59. Nd5+ {[%emt 0:00:00]} Ke6 {[%emt 0:01:15]} 60. Ndf4+ {[%emt 0:00:00]} Kf7 {[%emt 0:00:30]} 61. g5 {[%emt 0:00:00]} Nc6 {[%emt 0:00:21]} 62. gxh6 {[%emt 0:00:00]} gxh6 {[%emt 0:00:00]} 63. Nd5 {[%emt 0:00:00]} N4a5 {[%emt 0:00:09]} 64. Nf2 {[%emt 0:00:00]} Ke6 {[%emt 0:00:33]} 65. Ne3 {[%emt 0:00:00]} Nd4+ {[%emt 0:00:04]} 66. Kd3 {[%emt 0:00:00]} b3 {[%emt 0:00:00]} 67. Kc3 {[%emt 0:00:00]} Nf5 {[%emt 0:00:06]} 68. Neg4 {[%emt 0:00:00]} Kd5 {[%emt 0:00:03]} 69. Nd3 {[%emt 0:00:00]} Ng3 {[%emt 0:00:00]} 70. Nxh6 {[%emt 0:00:00]} Nxh5 {[%emt 0:00:00]} 71. Nc1 {[%emt 0:00:00]} Nf6 {[%emt 0:00:00]} 1/2-1/2

[Event "Fagernes Open 2019"]
[Site "Fagernes"]
[Date "2019.04.21"]
[Round "9.27"]
[White "Dale, Gunnar Brandshaug"]
[Black "Lundberg, Alf W."]
[Result "1-0"]
[ECO "B52"]
[WhiteElo "1903"]
[BlackElo "1932"]
[Annotator "NA"]
[PlyCount "101"]
[EventDate "2019.04.14"]
[EventType "swiss"]
[EventCountry "NOR"]
[SourceTitle "playchess.com"]
[Source "ChessBase"]
[SourceQuality "1"]
[TimeControl "40/7200:3600"]

1. e4 {[%emt 0:00:59]} c5 {[%emt 0:00:06]} 2. Nf3 {[%emt 0:00:32]} d6 {[%emt 0:00:12]} 3. Bb5+ {[%emt 0:00:36]} Bd7 {[%emt 0:02:24]} 4. Bxd7+ {[%emt 0:00:07]} Qxd7 {[%emt 0:00:03]} 5. O-O {[%emt 0:00:12]} Nc6 {[%emt 0:00:17]} 6. Re1 {[%emt 0:00:17]} e5 {[%emt 0:01:54]} 7. c3 {[%emt 0:00:15]} O-O-O {[%emt 0:02:54]} 8. d4 {[%emt 0:03:43]} Qe8 {[%emt 0:04:09]} 9. b4 {[%emt 0:07:29]} f6 {[%emt 0:03:43]} 10. d5 {[%emt 0:05:59]} Nb8 {[%emt 0:03:13]} 11. bxc5 {[%emt 0:00:34]} dxc5 {[%emt 0:00:02]} 12. Be3 {[%emt 0:02:14]} g5 {[%emt 0:00:34]} 13. c4 {[%emt 0:06:27]} Ne7 {[%emt 0:07:12]} 14. Bxc5 {[%emt 0:02:23]} b6 {[%emt 0:00:39]} 15. Be3 {[%emt 0:01:48]} Ng6 {[%emt 0:00:29]} 16. Nc3 {[%emt 0:02:19]} Bb4 {[%emt 0:03:04]} 17. Qb3 {[%emt 0:00:35]} Na6 {[%emt 0:02:26]} 18. a3 {[%emt 0:02:40]} Bc5 {[%emt 0:01:03]} 19. Na4 {[%emt 0:02:53]} Qe7 {[%emt 0:02:33]} 20. Qb5 {[%emt 0:01:03]} Kb7 {[%emt 0:06:47]} 21. Qc6+ {[%emt 0:03:10]} Kb8 {[%emt 0:00:08]} 22. Bxc5 {[%emt 0:03:55]} Nxc5 {[%emt 0:00:13]} 23. Nxc5 {[%emt 0:02:36]} Qxc5 {[%emt 0:01:43]} 24. Qxc5 {[%emt 0:01:52]} bxc5 {[%emt 0:00:04]} 25. Rab1+ {[%emt 0:00:05]} Kc7 {[%emt 0:03:06]} 26. Rb5 {[%emt 0:00:52]} Kd6 {[%emt 0:00:24]} 27. Reb1 {[%emt 0:00:24]} Rd7 {[%emt 0:10:35]} 28. Ne1 {[%emt 0:03:57]} Rc8 {[%emt 0:09:03]} 29. Kf1 {[%emt 0:01:28]} h6 {[%emt 0:16:02]} 30. Ke2 {[%emt 0:03:45]} Ke7 {[%emt 0:05:13]} 31. g3 {[%emt 0:01:46]} Nf8 {[%emt 0:01:47]} 32. Nd3 {[%emt 0:02:24]} Rdc7 {[%emt 0:01:06]} 33. a4 {[%emt 0:00:46]} Nd7 {[%emt 0:02:22]} 34. a5 {[%emt 0:01:11]} Kd6 {[%emt 0:03:32]} 35. h3 {[%emt 0:04:37]} h5 {[%emt 0:02:01]} 36. Ke3 {[%emt 0:01:41]} Rg8 {[%emt 0:04:12]} 37. Rb7 {[%emt 0:04:12]} Rgc8 {[%emt 0:02:16]} 38. R1b5 {[%emt 0:03:57]} Rxb7 {[%emt 0:06:08]} 39. Rxb7 {[%emt 0:00:13]} Rc7 {[%emt 0:00:05]} 40. Rb1 {[%emt 0:04:04]} Rc8 {[%emt 0:02:13]} 41. f3 {[%emt 1:01:04]} Rb8 {[%emt 1:00:51]} 42. Rxb8 {[%emt 0:00:49]} Nxb8 {[%emt 0:00:05]} 43. h4 {[%emt 0:02:17]} Nd7 {[%emt 0:00:00]} 44. hxg5 {[%emt 0:00:00]} fxg5 {[%emt 0:00:00]} 45. f4 {[%emt 0:00:00]} gxf4+ {[%emt 0:00:00]} 46. gxf4 {[%emt 0:00:00]} exf4+ {[%emt 0:00:00]} 47. Kxf4 {[%emt 0:00:00]} Nf8 {[%emt 0:00:00]} 48. e5+ {[%emt 0:00:00]} Ke7 {[%emt 0:00:00]} 49. Kg5 {[%emt 0:00:00]} Nd7 {[%emt 0:00:00]} 50. Kxh5 {[%emt 0:00:00]} Kd8 {[%emt 0:00:00]} 51. Kg6 {[%emt 0:00:00]} 1-0

[Event "Fagernes Open 2019"]
[Site "Fagernes"]
[Date "2019.04.21"]
[Round "9.28"]
[White "Sidali, Elias Hulleberg"]
[Black "Rasmussen, Jonas H"]
[Result "1-0"]
[ECO "D10"]
[WhiteElo "1944"]
[BlackElo "1993"]
[Annotator "NA"]
[PlyCount "79"]
[EventDate "2019.04.14"]
[EventType "swiss"]
[EventCountry "NOR"]
[SourceTitle "playchess.com"]
[Source "ChessBase"]
[SourceQuality "1"]
[TimeControl "40/7200:3600"]

1. d4 {[%emt 0:00:03]} d5 {[%emt 0:00:07]} 2. Bf4 {[%emt 0:00:19]} Nf6 {[%emt 0:00:52]} 3. e3 {[%emt 0:00:12]} c6 {[%emt 0:00:22]} 4. c4 {[%emt 0:00:28]} a6 {[%emt 0:01:28]} 5. Nc3 {[%emt 0:00:09]} Bf5 {[%emt 0:03:25]} 6. Qb3 {[%emt 0:05:32]} Qc8 {[%emt 0:11:35]} 7. Nf3 {[%emt 0:04:42]} e6 {[%emt 0:01:19]} 8. h3 {[%emt 0:01:47]} Be7 {[%emt 0:01:40]} 9. Be2 {[%emt 0:01:58]} O-O {[%emt 0:01:45]} 10. O-O {[%emt 0:00:07]} Nbd7 {[%emt 0:00:52]} 11. Ne5 {[%emt 0:11:31]} Nxe5 {[%emt 0:01:33]} 12. Bxe5 {[%emt 0:00:52]} dxc4 {[%emt 0:06:55]} 13. Qxc4 {[%emt 0:02:02]} Ne4 {[%emt 0:03:01]} 14. Nxe4 {[%emt 0:05:47]} Bxe4 {[%emt 0:00:04]} 15. b4 {[%emt 1:24:31]} Qd7 {[%emt 0:03:32]} 16. f3 {[%emt 0:00:00]} Bg6 {[%emt 0:01:15]} 17. e4 {[%emt 0:00:00]} Rfd8 {[%emt 0:02:31]} 18. Rfd1 {[%emt 0:00:00]} Bd6 {[%emt 0:04:07]} 19. a4 {[%emt 0:00:00]} Rac8 {[%emt 0:04:52]} 20. Bxd6 {[%emt 0:00:00]} Qxd6 {[%emt 0:00:05]} 21. Qc5 {[%emt 0:00:00]} Qf4 {[%emt 0:03:09]} 22. Qc1 {[%emt 0:00:00]} Qg3 {[%emt 0:07:09]} 23. Qe3 {[%emt 0:00:00]} h6 {[%emt 0:12:32]} 24. Rac1 {[%emt 0:00:00]} Qd6 {[%emt 0:03:33]} 25. Rc4 {[%emt 0:00:00]} Rc7 {[%emt 0:07:56]} 26. Rdc1 {[%emt 0:00:00]} b5 {[%emt 0:08:34]} 27. axb5 {[%emt 0:00:00]} axb5 {[%emt 0:00:05]} 28. Rc5 {[%emt 0:00:00]} Qxd4 {[%emt 0:01:07]} 29. Qxd4 {[%emt 0:00:00]} Rxd4 {[%emt 0:00:03]} 30. Bxb5 {[%emt 0:00:00]} Rxb4 {[%emt 0:01:02]} 31. Bxc6 {[%emt 0:00:00]} Rb2 {[%emt 0:05:45]} 32. h4 {[%emt 0:00:00]} Rb8 {[%emt 0:04:31]} 33. h5 {[%emt 0:00:00]} Bh7 {[%emt 0:00:49]} 34. Bb7 {[%emt 0:00:00]} Rxc5 {[%emt 0:00:48]} 35. Rxc5 {[%emt 0:00:00]} f5 {[%emt 0:03:26]} 36. Bc8 {[%emt 0:00:00]} fxe4 {[%emt 0:01:24]} 37. Bxe6+ {[%emt 0:00:00]} Kh8 {[%emt 0:00:44]} 38. f4 {[%emt 0:00:00]} Re8 {[%emt 0:03:45]} 39. Bf7 {[%emt 0:00:00]} Rd8 {[%emt 0:01:42]} 40. Re5 {[%emt 0:00:00]} 1-0

[Event "Fagernes Open 2019"]
[Site "Fagernes"]
[Date "2019.04.21"]
[Round "9.29"]
[White "Melaa, Sondre"]
[Black "Loberg, Jo Kristian"]
[Result "1/2-1/2"]
[ECO "B10"]
[WhiteElo "1991"]
[BlackElo "2045"]
[Annotator "NA"]
[PlyCount "134"]
[EventDate "2019.04.14"]
[EventType "swiss"]
[EventCountry "NOR"]
[SourceTitle "playchess.com"]
[Source "ChessBase"]
[SourceQuality "1"]
[TimeControl "40/7200:3600"]

1. c4 {[%emt 0:00:03]} c6 {[%emt 0:00:53]} 2. e4 {[%emt 0:00:09]} d5 {[%emt 0:00:05]} 3. exd5 {[%emt 0:00:07]} cxd5 {[%emt 0:00:05]} 4. cxd5 {[%emt 0:00:08]} Nf6 {[%emt 0:00:39]} 5. Nc3 {[%emt 0:00:15]} Nxd5 {[%emt 0:00:52]} 6. Nf3 {[%emt 0:00:12]} Nc6 {[%emt 0:01:22]} 7. Bb5 {[%emt 0:00:09]} Nxc3 {[%emt 0:04:41]} 8. bxc3 {[%emt 0:01:57]} Bg4 {[%emt 0:01:08]} 9. d4 {[%emt 0:13:55]} e6 {[%emt 0:09:19]} 10. O-O {[%emt 0:03:35]} Bd6 {[%emt 0:16:01]} 11. Qd3 {[%emt 0:09:47]} O-O {[%emt 0:02:02]} 12. Ng5 {[%emt 0:06:12]} Bf5 {[%emt 0:01:15]} 13. Qf3 {[%emt 0:00:28]} h6 {[%emt 0:01:58]} 14. Nh3 {[%emt 0:03:52]} Rc8 {[%emt 0:04:46]} 15. Bd2 {[%emt 0:05:27]} Qa5 {[%emt 0:07:09]} 16. Bd3 {[%emt 0:04:15]} Nxd4 {[%emt 0:05:39]} 17. cxd4 {[%emt 0:00:42]} Qxd2 {[%emt 0:02:35]} 18. Bxf5 {[%emt 0:00:33]} exf5 {[%emt 0:00:43]} 19. Rfd1 {[%emt 0:00:58]} Qa5 {[%emt 0:11:02]} 20. Qxb7 {[%emt 0:01:40]} Rc2 {[%emt 0:00:39]} 21. Qb3 {[%emt 0:02:47]} Rc3 {[%emt 0:03:50]} 22. Qb2 {[%emt 0:01:58]} Rb8 {[%emt 0:00:53]} 23. Qe2 {[%emt 0:03:09]} Qa3 {[%emt 0:05:27]} 24. Qh5 {[%emt 0:04:18]} Qa5 {[%emt 0:06:57]} 25. d5 {[%emt 0:04:13]} Rb2 {[%emt 0:06:15]} 26. Qxf5 {[%emt 0:02:10]} Rcc2 {[%emt 0:01:27]} 27. g3 {[%emt 0:05:28]} Qb6 {[%emt 0:04:12]} 28. Rac1 {[%emt 0:02:04]} Qc5 {[%emt 0:02:57]} 29. Rxc2 {[%emt 0:00:10]} Qxc2 {[%emt 0:00:06]} 30. Qf3 {[%emt 0:02:11]} Qe2 {[%emt 0:03:26]} 31. Qxe2 {[%emt 0:03:04]} Rxe2 {[%emt 0:00:04]} 32. Rc1 {[%emt 0:01:05]} Rxa2 {[%emt 0:05:29]} 33. Rc6 {[%emt 0:05:34]} Be5 {[%emt 0:00:02]} 34. Nf4 {[%emt 0:03:57]} Rd2 {[%emt 0:00:44]} 35. Rc8+ {[%emt 0:04:30]} Kh7 {[%emt 0:00:05]} 36. Re8 {[%emt 0:00:14]} Bxf4 {[%emt 0:01:22]} 37. gxf4 {[%emt 0:00:10]} Rxd5 {[%emt 0:00:05]} 38. Re7 {[%emt 0:00:10]} Rf5 {[%emt 0:00:10]} 39. Rxa7 {[%emt 0:00:09]} Rxf4 {[%emt 0:00:06]} 40. Kg2 {[%emt 0:00:27]} g5 {[%emt 0:00:04]} 41. Rb7 {[%emt 1:02:32]} Kg6 {[%emt 1:00:52]} 42. Rb6+ {[%emt 0:01:46]} f6 {[%emt 0:00:47]} 43. Ra6 {[%emt 0:00:26]} h5 {[%emt 0:00:36]} 44. h3 {[%emt 0:01:34]} g4 {[%emt 0:00:00]} 45. hxg4 {[%emt 0:00:00]} Rxg4+ {[%emt 0:00:00]} 46. Kf3 {[%emt 0:00:00]} Rg5 {[%emt 0:00:00]} 47. Rb6 {[%emt 0:00:00]} h4 {[%emt 0:00:00]} 48. Rb8 {[%emt 0:00:00]} Rh5 {[%emt 0:00:00]} 49. Kg2 {[%emt 0:00:00]} Kg5 {[%emt 0:00:00]} 50. Rb4 {[%emt 0:00:00]} Rh8 {[%emt 0:00:00]} 51. Kh3 {[%emt 0:00:00]} Ra8 {[%emt 0:00:00]} 52. Rg4+ {[%emt 0:00:00]} Kf5 {[%emt 0:00:00]} 53. Rxh4 {[%emt 0:00:00]} Rg8 {[%emt 0:00:00]} 54. Ra4 {[%emt 0:00:00]} Rg1 {[%emt 0:00:00]} 55. Kh2 {[%emt 0:00:00]} Rg4 {[%emt 0:00:00]} 56. Rxg4 {[%emt 0:00:00]} Kxg4 {[%emt 0:00:00]} 57. Kg2 {[%emt 0:00:00]} Kf4 {[%emt 0:00:00]} 58. f3 {[%emt 0:00:00]} Ke3 {[%emt 0:00:00]} 59. Kg3 {[%emt 0:00:00]} f5 {[%emt 0:00:00]} 60. f4 {[%emt 0:00:00]} Ke4 {[%emt 0:00:00]} 61. Kg2 {[%emt 0:00:00]} Kxf4 {[%emt 0:00:00]} 62. Kf2 {[%emt 0:00:00]} Ke4 {[%emt 0:00:00]} 63. Ke2 {[%emt 0:00:00]} f4 {[%emt 0:00:00]} 64. Kf2 {[%emt 0:00:00]} f3 {[%emt 0:00:00]} 65. Kf1 {[%emt 0:00:00]} Ke3 {[%emt 0:00:00]} 66. Ke1 {[%emt 0:00:00]} f2+ {[%emt 0:00:00]} 67. Kf1 {[%emt 0:00:00]} Kf3 {[%emt 0:01:11]} 1/2-1/2